fUSD/lending_fUSD_20250120
["ID","MTS","AMOUNT","RATE_DAILY","PERIOD"]
[349737603,1737402658815,-500.0,0.00020546,2]
[349737604,1737402658824,-378.82207857,0.00020546,2]
[349737605,1737402658833,-500.0,0.00020546,2]
[349737606,1737402658843,-500.0,0.00020546,2]
[349737607,1737402658853,-500.0,0.00020546,2]
[349737608,1737402658862,-500.0,0.00020546,2]
[349737609,1737402658871,-500.0,0.00020546,2]
[349737610,1737402658880,-705.09,0.00020546,2]
[349737611,1737402658889,-500.0,0.00020546,2]
[349737612,1737402658899,-556.67,0.00020546,2]
[349737613,1737402658908,-500.0,0.00020546,2]
[349737614,1737402658917,-529.43062399,0.00020546,2]
[349737615,1737402658926,-615.32,0.00020546,2]
[349737616,1737402658935,-658.39,0.00020546,2]
[349737617,1737402658945,-500.0,0.00020546,2]
[349737618,1737402658954,-641.03904466,0.00020546,2]
[349737619,1737402658963,-500.0,0.00020546,2]
[349737620,1737402658973,-500.0,0.00020546,2]
[349737621,1737402658983,-500.0,0.00020546,2]
[349737622,1737402658993,-500.0,0.00020546,2]
[349737623,1737402659002,-500.0,0.00020546,2]
[349737624,1737402659109,-500.0,0.00020546,2]
[349737625,1737402659129,-500.0,0.00020546,2]
[349737626,1737402659138,-500.0,0.00020546,2]
[349737627,1737402659148,-500.0,0.00020546,2]
[349737628,1737402659157,-500.0,0.00020546,2]
[349737629,1737402659166,-511.76167704,0.00020546,2]
[349737630,1737402659175,-500.0,0.00020546,2]
[349737631,1737402659184,-500.0,0.00020546,2]
[349737632,1737402659193,-500.0,0.00020546,2]
[349737633,1737402659202,-500.0,0.00020546,2]
[349737634,1737402659211,-500.0,0.00020546,2]
[349737635,1737402659220,-631.6,0.00020546,2]
[349737636,1737402659230,-500.0,0.00020546,2]
[349737637,1737402659239,-500.0,0.00020546,2]
[349737638,1737402659249,-500.0,0.00020546,2]
[349737639,1737402659258,-500.0,0.00020546,2]
[349737640,1737402659267,-500.0,0.00020546,2]
[349737641,1737402659276,-500.0,0.00020546,2]
[349737642,1737402659286,-500.0,0.00020546,2]
[349737643,1737402659295,-500.0,0.00020546,2]
[349737644,1737402659304,-500.0,0.00020546,2]
[349737645,1737402659313,-570.75,0.00020546,2]
[349737646,1737402659323,-500.0,0.00020546,2]
[349737647,1737402659332,-500.0,0.00020546,2]
[349737648,1737402659341,-500.0,0.00020546,2]
[349737649,1737402659350,-500.0,0.00020546,2]
[349737650,1737402659360,-500.0,0.00020546,2]
[349737651,1737402659369,-500.0,0.00020546,2]
[349737652,1737402659378,-500.0,0.00020546,2]
[349737653,1737402659388,-582.42,0.00020546,2]
[349737654,1737402659399,-500.0,0.00020546,2]
[349737655,1737402659408,-500.0,0.00020546,2]
[349737656,1737402659418,-500.0,0.00020546,2]
[349737657,1737402659427,-500.0,0.00020546,2]
[349737658,1737402659437,-649.32,0.00020546,2]
[349737659,1737402659447,-500.0,0.00020546,2]
[349737660,1737402659457,-560.05398455,0.00020546,2]
[349737661,1737402659466,-170.91428,0.00020546,2]
[349737662,1737402659476,-500.0,0.00020546,2]
[349737663,1737402659485,-170.91428,0.00020546,2]
[349737664,1737402659495,-500.0,0.00020546,2]
[349737665,1737402659504,-749.57,0.00020546,2]
[349737666,1737402659515,-151.0,0.00020547,2]
[349737667,1737402659524,-590.18190631,0.00020547,2]
[349737668,1737402659533,-386.52,0.00020547,2]
[349737669,1737402659543,-693.56,0.00020547,2]
[349737670,1737402659552,-657.85,0.00020547,2]
[349737671,1737402659561,-500.0,0.00020547,2]
[349737672,1737402659571,-1377.16,0.00020547,2]
[349737673,1737402659580,-500.0,0.00020547,2]
[349737674,1737402659589,-500.0,0.00020547,2]
[349737675,1737402659599,-500.0,0.00020547,2]
[349737676,1737402659609,-500.0,0.00020547,2]
[349737677,1737402659619,-514.64,0.00020547,2]
[349737678,1737402659629,-500.0,0.00020547,2]
[349737679,1737402659640,-500.0,0.00020547,2]
[349737680,1737402659653,-500.0,0.00020547,2]
[349737681,1737402659663,-500.0,0.00020547,2]
[349737682,1737402659673,-500.0,0.00020547,2]
[349737683,1737402659683,-500.0,0.00020547,2]
[349737684,1737402659693,-500.0,0.00020547,2]
[349737685,1737402659702,-500.0,0.00020547,2]
[349737686,1737402659711,-709.92,0.00020547,2]
[349737687,1737402659721,-571.54,0.00020547,2]
[349737688,1737402659730,-500.0,0.00020547,2]
[349737689,1737402659739,-510.61,0.00020547,2]
[349737690,1737402659748,-500.0,0.00020547,2]
[349737691,1737402659757,-704.92,0.00020547,2]
[349737692,1737402659766,-300.0,0.00020547,2]
[349737693,1737402659776,-500.0,0.00020547,2]
[349737694,1737402659785,-500.0,0.00020547,2]
[349737695,1737402659795,-500.0,0.00020547,2]
[349737696,1737402659805,-151.0,0.00020547,2]
[349737697,1737402659817,-500.0,0.00020547,2]
[349737698,1737402659828,-500.0,0.00020547,2]
[349737699,1737402659838,-500.0,0.00020547,2]
[349737700,1737402659848,-151.0,0.00020547,2]
[349737701,1737402659857,-967.1,0.00020547,2]
[349737702,1737402659867,-151.0,0.00020547,2]
[349737703,1737402659877,-515.37762454,0.00020547,2]
[349737704,1737402659887,-500.0,0.00020547,2]
[349737705,1737402659898,-1040.77,0.00020547,2]
[349737706,1737402659907,-926.08,0.00020547,2]
[349737707,1737402659917,-151.0,0.00020547,2]
[349737708,1737402659926,-738.16,0.00020547,2]
[349737709,1737402659935,-782.11,0.00020547,2]
[349737710,1737402659945,-151.0,0.00020547,2]
[349737711,1737402659955,-500.0,0.00020547,2]
[349737712,1737402659964,-526.23313962,0.00020547,2]
[349737713,1737402659974,-757.81,0.00020547,2]
[349737714,1737402659984,-151.0,0.00020547,2]
[349737715,1737402659994,-748.69,0.00020547,2]
[349737716,1737402660004,-670.79,0.00020547,2]
[349737717,1737402660014,-1131.49,0.00020547,2]
[349737718,1737402660024,-571.14,0.00020547,2]
[349737719,1737402660033,-530.83,0.00020547,2]
[349737720,1737402660043,-1001.16,0.00020547,2]
[349737721,1737402660053,-903.29,0.00020547,2]
[349737722,1737402660063,-576.41578942,0.00020547,2]
[349737723,1737402660073,-688.81,0.00020547,2]
[349737724,1737402660083,-867.32,0.00020547,2]
[349737725,1737402660092,-783.82,0.00020547,2]
[349737726,1737402660101,-1397.83,0.00020547,2]
[349737727,1737402660111,-500.0,0.00020547,2]
[349737728,1737402660121,-1084.16,0.00020547,2]
[349737729,1737402660130,-500.0,0.00020547,2]
[349737730,1737402660140,-2324.14,0.00020547,2]
[349737731,1737402660152,-2720.61,0.00020547,2]
[349737732,1737402660160,-2896.78,0.00020547,2]
[349737733,1737402660169,-4971.5,0.00020547,2]
[349737734,1737402660178,-1129.36,0.00020547,2]
[349737735,1737402660187,-711.14,0.00020547,2]
[349737736,1737402660196,-855.3,0.00020547,2]
[349737737,1737402660206,-1070.95,0.00020547,2]
[349737738,1737402660215,-748.2,0.00020547,2]
[349737739,1737402660225,-1713.39,0.00020547,2]
[349737740,1737402660235,-5370.89,0.00020547,2]
[349737741,1737402660245,-3890.34,0.00020547,2]
[349737742,1737402660254,-863.32,0.00020547,2]
[349737743,1737402660263,-1226.35,0.00020547,2]
[349737744,1737402660274,-1111.21,0.00020547,2]
[349737745,1737402660283,-1732.203098,0.00020547,2]
[349737746,1737402660292,-1732.203098,0.00020547,2]
[349737747,1737402660302,-1754.48,0.00020547,2]
[349737748,1737402660311,-2786.79,0.00020547,2]
[349737749,1737402660320,-500.0,0.00020547,2]
[349737750,1737402660330,-1125.92,0.00020547,2]
[349737751,1737402660339,-2395.51,0.00020547,2]
[349737752,1737402660349,-151.0,0.00020547,2]
[349737753,1737402660359,-500.0,0.00020547,2]
[349737754,1737402660368,-910.76,0.00020547,2]
[349737755,1737402660377,-387.879959,0.00020547,2]
[349737756,1737402660387,-500.0,0.00020547,2]
[349737757,1737402660396,-151.0,0.00020547,2]
[349737758,1737402660406,-387.879959,0.00020547,2]
[349737759,1737402660416,-1897.83,0.00020547,2]
[349737760,1737402660425,-1391.07,0.00020547,2]
[349737761,1737402660435,-4210.59,0.00020547,2]
[349737762,1737402660445,-1110.48,0.00020547,2]
[349737763,1737402660454,-649.64,0.00020547,2]
[349737764,1737402660463,-2128.9,0.00020547,2]
[349737765,1737402660473,-500.0,0.00020547,2]
[349737766,1737402660482,-515.27,0.00020547,2]
[349737767,1737402660492,-619.67,0.00020547,2]
[349737768,1737402660501,-500.0,0.00020547,2]
[349737769,1737402660510,-2130.06,0.00020547,2]
[349737770,1737402660520,-500.0,0.00020547,2]
[349737771,1737402660529,-1000.0,0.00020547,2]
[349737772,1737402660538,-589.39,0.00020547,2]
[349737773,1737402660547,-151.0,0.00020547,2]
[349737774,1737402660556,-151.0,0.00020547,2]
[349737775,1737402660566,-1740.71,0.00020547,2]
[349737776,1737402660575,-1099.37,0.00020547,2]
[349737777,1737402660585,-1209.92,0.00020547,2]
[349737778,1737402660595,-500.0,0.00020547,2]
[349737779,1737402660604,-838.12,0.00020547,2]
[349737780,1737402660614,-656.66,0.00020547,2]
[349737781,1737402660624,-1931.69,0.00020547,2]
[349737782,1737402660634,-617.57,0.00020547,2]
[349737783,1737402660644,-728.46,0.00020547,2]
[349737784,1737402660655,-2704.82,0.00020547,2]
[349737785,1737402660664,-151.0,0.00020547,2]
[349737786,1737402660673,-500.0,0.00020547,2]
[349737787,1737402660684,-500.0,0.00020547,2]
[349737788,1737402660694,-2566.58,0.00020547,2]
[349737789,1737402660704,-500.0,0.00020547,2]
[349737790,1737402660714,-1375.78,0.00020547,2]
[349737791,1737402660723,-500.0,0.00020547,2]
[349737792,1737402660733,-541.9,0.00020547,2]
[349737793,1737402660742,-616.51,0.00020547,2]
[349737794,1737402660751,-20432.03,0.00020548,2]
[349737795,1737402660760,-1311.0,0.00020548,4]
[349737796,1737402660770,-421.85864668,0.00020567,2]
[349737797,1737402660781,-206.78671214,0.00020567,2]
[349737798,1737402660791,-150.0,0.00020579,2]
[349737799,1737402660800,-150.0,0.00020586,2]
[349737800,1737402660811,-150.0,0.00020587,2]
[349737801,1737402660823,-1259.42,0.00020589,7]
[349737802,1737402660833,-1259.42,0.00020589,7]
[349737803,1737402660842,-150.0,0.0002059,2]
[349737804,1737402660851,-170.91428,0.000206,2]
[349737805,1737402660862,-170.91428,0.000206,2]
[349737806,1737402660975,-150.0,0.0002061,2]
[349737807,1737402660985,-500.0,0.00020619,2]
[349737808,1737402660994,-500.0,0.00020619,2]
[349737809,1737402661004,-500.0,0.00020619,2]
[349737810,1737402661013,-500.0,0.00020619,2]
[349737811,1737402661023,-1077.88,0.00020619,2]
[349737812,1737402661032,-500.0,0.00020619,2]
[349737813,1737402661042,-2286.06,0.00020619,2]
[349737814,1737402661051,-756.99,0.00020619,2]
[349737815,1737402661060,-853.385106,0.00020619,2]
[349737816,1737402661068,-500.0,0.00020619,2]
[349737817,1737402661077,-500.0,0.00020619,2]
[349737818,1737402661086,-500.0,0.00020619,2]
[349737819,1737402661096,-2776.39,0.00020619,2]
[349737820,1737402661105,-1794.68,0.00020619,2]
[349737821,1737402661115,-623.00358,0.00020619,2]
[349737822,1737402661125,-1645.42,0.00020619,2]
[349737823,1737402661135,-500.0,0.00020619,2]
[349737824,1737402661144,-1167.65,0.00020619,2]
[349737825,1737402661158,-806.39,0.00020619,2]
[349737826,1737402661167,-500.0,0.00020619,2]
[349737827,1737402661177,-862.81,0.00020619,2]
[349737828,1737402661186,-500.0,0.00020619,2]
[349737829,1737402661196,-3946.69,0.00020619,2]
[349737830,1737402661206,-1049.73,0.00020619,2]
[349737831,1737402661215,-2193.59,0.00020619,2]
[349737832,1737402661225,-757.02,0.00020619,2]
[349737833,1737402661234,-859.6,0.00020619,2]
[349737834,1737402661243,-1610.74,0.00020619,2]
[349737835,1737402661252,-1446.28,0.00020619,2]
[349737836,1737402661262,-2739.71,0.00020619,2]
[349737837,1737402661271,-500.0,0.00020619,2]
[349737838,1737402661280,-1764.04,0.00020619,2]
[349737839,1737402661289,-1405.55,0.00020619,2]
[349737840,1737402661299,-748.86,0.00020619,2]
[349737841,1737402661308,-500.0,0.00020619,2]
[349737842,1737402661317,-500.0,0.00020619,2]
[349737843,1737402661326,-1064.69,0.00020619,2]
[349737844,1737402661335,-2132.45,0.00020619,2]
[349737845,1737402661344,-859.63,0.00020619,2]
[349737846,1737402661354,-500.0,0.00020619,2]
[349737847,1737402661363,-1772.55,0.00020619,2]
[349737848,1737402661372,-2696.06,0.00020619,2]
[349737849,1737402661382,-1670.66,0.00020619,2]
[349737850,1737402661391,-2021.54,0.00020619,2]
[349737851,1737402661402,-3006.85,0.00020619,2]
[349737852,1737402661411,-968.15,0.00020619,2]
[349737853,1737402661420,-3229.93,0.00020619,2]
[349737854,1737402661429,-877.14,0.00020619,2]
[349737855,1737402661439,-500.0,0.00020619,2]
[349737856,1737402661447,-1218.15,0.00020619,2]
[349737857,1737402661457,-500.0,0.00020619,2]
[349737858,1737402661467,-721.51,0.00020619,2]
[349737859,1737402661476,-3000.08,0.00020619,2]
[349737860,1737402661485,-1221.52,0.00020619,2]
[349737861,1737402661494,-500.0,0.00020619,2]
[349737862,1737402661504,-643.19,0.00020619,2]
[349737863,1737402661514,-2014.10089495,0.00020619,2]
[349737864,1737402662555,-209.40129513,0.00020619,2]
[349737865,1737402662572,-500.0,0.0002,2]
[349737866,1737402662582,-1567.09780992,0.00020619,2]
[349737867,1737402662591,-172.00479529,0.00020619,2]
[349737868,1737402662603,-443.55520471,0.00020619,2]
[349737869,1737402662612,-244.38826529,0.00020619,2]
[349737870,1737402662628,-541.38173471,0.00020619,2]
[349737871,1737402662637,-500.0,0.00020619,2]
[349737872,1737402662649,-500.0,0.00020619,2]
[349737873,1737402662658,-500.0,0.00020619,2]
[349737874,1737402662667,-522.12,0.00020619,2]
[349737875,1737402662676,-563.67,0.00020619,2]
[349737876,1737402662686,-1609.30870647,0.00020619,2]
[349737877,1737402662701,-290.92983713,0.00020619,2]
[349737878,1737402662713,-1725.7614564,0.00020619,2]
[349737879,1737402662724,-500.0,0.00020619,2]
[349737880,1737402662733,-471.41824482,0.00020619,2]
[349737881,1737402662746,-138.62175518,0.00020619,2]
[349737882,1737402662755,-181.52824122,0.00020619,2]
[349737883,1737402662772,-1903.81175878,0.00020619,2]
[349737884,1737402662782,-151.0,0.0002062,2]
[349737885,1737402662791,-151.970098,0.0002062,2]
[349737886,1737402662800,-151.0,0.0002062,2]
[349737887,1737402662810,-151.0,0.0002062,2]
[349737888,1737402662823,-151.0,0.0002062,2]
[349737889,1737402662832,-1732.203098,0.0002062,2]
[349737890,1737402662842,-835.59768991,0.0002062,2]
[349737891,1737402662854,-896.60540809,0.0002062,2]
[349737892,1737402662864,-151.0,0.0002062,2]
[349737893,1737402662873,-387.879959,0.0002062,2]
[349737894,1737402662883,-151.0,0.0002062,2]
[349737895,1737402662892,-387.879959,0.0002062,2]
[349737896,1737402662904,-151.0,0.0002062,2]
[349737897,1737402662914,-166.793088,0.0002062,2]
[349737898,1737402662923,-164.827753,0.0002062,2]
[349737899,1737402662932,-180.68355716,0.00020621,2]
[349737900,1737402662942,-641.53027575,0.00020621,2]
[349737901,1737402663114,-264.27760035,0.00019178,2]
[349737902,1737402663126,-235.72239965,0.00019178,2]
[349737903,1737402663135,-500.0,0.00019452,2]
[349737904,1737402663145,-188.706673,0.00019523,2]
[349737905,1737402663157,-500.0,0.00019523,2]
[349737906,1737402663167,-500.0,0.00019726,2]
[349737907,1737402663178,-500.0,0.00019797,2]
[349737908,1737402663188,-500.0,0.0002,2]
[349737909,1737402663197,-500.0,0.00020071,2]
[349737910,1737402663207,-358.88734735,0.00020273,2]
[349737911,1737402663220,-141.11265265,0.00020273,2]
[349737912,1737402663229,-500.0,0.00020273,2]
[349737913,1737402663239,-505.86,0.00020345,2]
[349737914,1737402663249,-178.26328555,0.00020547,2]
[349737915,1737402663339,-282.829833,0.00020547,2]
[349737916,1737402663351,-38.90688145,0.00020547,2]
[349737917,1737402663360,-217.18535858,0.00020547,2]
[349737918,1737402663372,-282.81464142,0.00020547,2]
[349737919,1737402663381,-498.00693925,0.00020621,2]
[349737920,1737402663391,-67.38918525,0.00020621,2]
[349737921,1737402663405,-83.61081475,0.00020621,2]
[349737922,1737402663414,-1139.537215,0.00020621,2]
[349737923,1737402663424,-151.0,0.00020621,2]
[349737924,1737402663434,-151.0,0.00020621,2]
[349737925,1737402663443,-2240.0,0.00020624,2]
[349737926,1737402663453,-2513.9826603,0.00020642,2]
[349737927,1737402663462,-150.0,0.00020642,2]
[349737928,1737402663471,-150.0,0.00020647,2]
[349737929,1737402663481,-300.0,0.00020651,2]
[349737930,1737402663491,-150.0,0.00020658,2]
[349737931,1737402663501,-206.78671214,0.00020678,2]
[349737932,1737402663511,-200.0,0.00020679,2]
[349737933,1737402663520,-150.0,0.0002068,2]
[349737934,1737402663530,-535.28,0.00020682,2]
[349737935,1737402663540,-200.0,0.00020688,2]
[349737936,1737402663550,-200.0,0.00020688,2]
[349737937,1737402663560,-200.0,0.00020688,2]
[349737938,1737402663569,-200.0,0.00020688,2]
[349737939,1737402663579,-200.0,0.00020688,2]
[349737940,1737402663588,-200.0,0.00020688,2]
[349737941,1737402663598,-200.0,0.00020688,2]
[349737942,1737402663608,-200.0,0.00020688,2]
[349737943,1737402663617,-200.0,0.00020688,2]
[349737944,1737402663626,-200.0,0.00020688,2]
[349737945,1737402663636,-200.0,0.00020688,2]
[349737946,1737402663645,-200.0,0.00020688,2]
[349737947,1737402663657,-200.0,0.00020688,2]
[349737948,1737402663666,-200.0,0.00020688,2]
[349737949,1737402663676,-200.0,0.00020688,2]
[349737950,1737402663685,-200.0,0.00020688,2]
[349737951,1737402663695,-200.0,0.00020688,2]
[349737952,1737402663705,-200.0,0.00020688,2]
[349737953,1737402663715,-200.0,0.00020688,2]
[349737954,1737402663724,-196.0,0.00020688,2]
[349737955,1737402663735,-150.0,0.0002069,2]
[349737956,1737402663745,-1409.17,0.00020691,30]
[349737957,1737402663755,-12439.00602618,0.00020698,2]
[349737958,1737402663764,-200.99,0.00020738,2]
[349737959,1737402663778,-150.0,0.00020738,2]
[349737960,1737402663788,-150.0,0.00020743,2]
[349737961,1737402663799,-171.261219,0.00020764,2]
[349737962,1737402663809,-152.0,0.0002077,3]
[349737963,1737402663822,-150.0,0.00020777,2]
[349737964,1737402663832,-206.78671214,0.00020789,2]
[349737965,1737402663841,-161.607,0.000208,2]
[349737966,1737402663851,-201.0,0.000208,2]
[349737967,1737402663862,-151.0,0.000208,2]
[349737968,1737402663872,-250.64299784,0.000208,2]
[349737969,1737402663882,-151.0,0.000208,2]
[349737970,1737402663893,-151.0,0.000208,2]
[349737971,1737402664019,-151.0,0.000208,2]
[349737972,1737402664030,-170.60505,0.000208,2]
[349737973,1737402664040,-151.0,0.000208,2]
[349737974,1737402664050,-151.0,0.000208,2]
[349737975,1737402664060,-152.977135,0.000208,2]
[349737976,1737402664070,-151.0,0.000208,2]
[349737977,1737402664080,-151.0,0.000208,2]
[349737978,1737402664090,-619.662255,0.000208,2]
[349737979,1737402664100,-619.662255,0.000208,2]
[349737980,1737402664110,-150.0,0.00020802,2]
[349737981,1737402664120,-535.28,0.00020819,2]
[349737982,1737402664130,-252.18129292,0.0002082,2]
[349737983,1737402664139,-500.0,0.0002082,2]
[349737984,1737402664150,-500.0,0.0002082,2]
[349737985,1737402664159,-500.0,0.0002082,2]
[349737986,1737402664169,-500.0,0.0002082,2]
[349737987,1737402664179,-500.0,0.0002082,2]
[349737988,1737402664189,-327.50616834,0.0002082,2]
[349737989,1737402664199,-566.20210403,0.0002082,2]
[349737990,1737402664209,-358.87029654,0.0002082,2]
[349737991,1737402664220,-500.0,0.0002082,2]
[349737992,1737402664230,-568.9670033,0.0002082,2]
[349737993,1737402664240,-500.0,0.0002082,2]
[349737994,1737402664250,-500.0,0.0002082,2]
[349737995,1737402664260,-500.0,0.0002082,2]
[349737996,1737402664270,-500.0,0.0002082,2]
[349737997,1737402664280,-500.0,0.0002082,2]
[349737998,1737402664290,-500.0,0.0002082,2]
[349737999,1737402664300,-500.0,0.0002082,2]
[349738000,1737402664309,-500.0,0.0002082,2]
[349738001,1737402664320,-500.0,0.0002082,2]
[349738002,1737402664330,-500.0,0.0002082,2]
[349738003,1737402664339,-340.74590459,0.0002082,2]
[349738004,1737402664349,-500.0,0.0002082,2]
[349738005,1737402664359,-1151.29,0.0002082,2]
[349738006,1737402664369,-500.0,0.0002082,2]
[349738007,1737402664380,-500.0,0.0002082,2]
[349738008,1737402664389,-500.0,0.0002082,2]
[349738009,1737402664403,-500.0,0.0002082,2]
[349738010,1737402664413,-500.0,0.0002082,2]
[349738011,1737402664424,-608.86,0.0002082,2]
[349738012,1737402664433,-500.0,0.0002082,2]
[349738013,1737402664443,-500.0,0.0002082,2]
[349738014,1737402664454,-500.0,0.0002082,2]
[349738015,1737402664465,-500.0,0.0002082,2]
[349738016,1737402664475,-465.57628947,0.0002082,2]
[349738017,1737402664485,-500.0,0.0002082,2]
[349738018,1737402664495,-500.0,0.0002082,2]
[349738019,1737402664505,-703.81,0.0002082,2]
[349738020,1737402664515,-500.0,0.0002082,2]
[349738021,1737402664525,-500.0,0.0002082,2]
[349738022,1737402664535,-500.0,0.0002082,2]
[349738023,1737402664545,-500.0,0.0002082,2]
[349738024,1737402664554,-531.82,0.0002082,2]
[349738025,1737402664564,-746.25,0.0002082,2]
[349738026,1737402664573,-500.0,0.0002082,2]
[349738027,1737402664583,-523.67554841,0.0002082,2]
[349738028,1737402664592,-500.0,0.0002082,2]
[349738029,1737402664602,-500.0,0.0002082,2]
[349738030,1737402664612,-820.0,0.0002082,2]
[349738031,1737402664621,-500.0,0.0002082,2]
[349738032,1737402664630,-500.0,0.0002082,2]
[349738033,1737402664640,-716.89,0.0002082,2]
[349738034,1737402664651,-367.96845526,0.0002082,2]
[349738035,1737402664660,-500.0,0.0002082,2]
[349738036,1737402664670,-500.0,0.0002082,2]
[349738037,1737402664680,-616.38,0.0002082,2]
[349738038,1737402664689,-500.0,0.0002082,2]
[349738039,1737402664699,-537.76,0.0002082,2]
[349738040,1737402664710,-500.0,0.0002082,2]
[349738041,1737402664719,-793.14,0.0002082,2]
[349738042,1737402664729,-500.0,0.0002082,2]
[349738043,1737402664740,-500.0,0.0002082,2]
[349738044,1737402664750,-500.0,0.0002082,2]
[349738045,1737402664759,-537.52,0.0002082,2]
[349738046,1737402664769,-500.0,0.0002082,2]
[349738047,1737402664778,-500.0,0.0002082,2]
[349738048,1737402664788,-500.0,0.0002082,2]
[349738049,1737402664797,-500.0,0.0002082,2]
[349738050,1737402664807,-500.0,0.0002082,2]
[349738051,1737402664819,-500.0,0.0002082,2]
[349738052,1737402664828,-500.0,0.0002082,2]
[349738053,1737402664837,-500.0,0.0002082,2]
[349738054,1737402664846,-288.62189226,0.0002082,2]
[349738055,1737402664857,-500.0,0.0002082,2]
[349738056,1737402664867,-500.0,0.0002082,2]
[349738057,1737402664876,-500.0,0.0002082,2]
[349738058,1737402664885,-500.0,0.0002082,2]
[349738059,1737402664897,-500.0,0.0002082,2]
[349738060,1737402664912,-500.0,0.0002082,2]
[349738061,1737402664921,-500.0,0.0002082,2]
[349738062,1737402664931,-500.0,0.0002082,2]
[349738063,1737402664940,-500.0,0.0002082,2]
[349738064,1737402664949,-515.62,0.0002082,2]
[349738065,1737402664961,-500.0,0.0002082,2]
[349738066,1737402664972,-941.19,0.0002082,2]
[349738067,1737402664982,-850.02,0.0002082,2]
[349738068,1737402664992,-520.08,0.0002082,2]
[349738069,1737402665002,-500.0,0.0002082,2]
[349738070,1737402665011,-1010.73,0.0002082,2]
[349738071,1737402665021,-500.0,0.0002082,2]
[349738072,1737402665030,-500.0,0.0002082,2]
[349738073,1737402665040,-500.0,0.0002082,2]
[349738074,1737402665051,-500.0,0.0002082,2]
[349738075,1737402665061,-500.0,0.0002082,2]
[349738076,1737402665070,-500.0,0.0002082,2]
[349738077,1737402665080,-500.0,0.0002082,2]
[349738078,1737402665089,-500.0,0.0002082,2]
[349738079,1737402665099,-500.0,0.0002082,2]
[349738080,1737402665109,-500.0,0.0002082,2]
[349738081,1737402665118,-500.0,0.0002082,2]
[349738082,1737402665128,-500.0,0.0002082,2]
[349738083,1737402665137,-500.0,0.0002082,2]
[349738084,1737402665146,-705.09,0.0002082,2]
[349738085,1737402665157,-500.0,0.0002082,2]
[349738086,1737402665167,-556.67,0.0002082,2]
[349738087,1737402665176,-500.0,0.0002082,2]
[349738088,1737402665186,-615.32,0.0002082,2]
[349738089,1737402665195,-658.39,0.0002082,2]
[349738090,1737402665205,-500.0,0.0002082,2]
[349738091,1737402665214,-500.0,0.0002082,2]
[349738092,1737402665223,-500.0,0.0002082,2]
[349738093,1737402665234,-500.0,0.0002082,2]
[349738094,1737402665244,-500.0,0.0002082,2]
[349738095,1737402665254,-500.0,0.0002082,2]
[349738096,1737402665264,-500.0,0.0002082,2]
[349738097,1737402665273,-500.0,0.0002082,2]
[349738098,1737402665282,-500.0,0.0002082,2]
[349738099,1737402665292,-500.0,0.0002082,2]
[349738100,1737402665302,-500.0,0.0002082,2]
[349738101,1737402665312,-500.0,0.0002082,2]
[349738102,1737402665321,-500.0,0.0002082,2]